bitfinex/quotes_BTCUSD_20240617
["timestamp","ask_amount","ask_price","bid_price","bid_amount"]
[1718655238154,0.00955,66300.0,66299.0,4.75164426]
[1718655238360,0.00810694,66300.0,66299.0,4.75164426]
[1718655238521,0.00810694,66300.0,66299.0,4.64964426]
[1718655238884,0.00810694,66300.0,66299.0,4.17202896]
[1718655239060,0.00810694,66300.0,66299.0,4.20330295]
[1718655239614,0.00810694,66300.0,66299.0,4.18602896]
[1718655239817,0.00810694,66300.0,66299.0,3.98636605]
[1718655240191,0.00810694,66300.0,66299.0,2.05230296]
[1718655240360,0.00810694,66300.0,66299.0,1.4373037]
[1718655240568,0.00710694,66300.0,66299.0,1.7249667]
[1718655240782,0.00710694,66300.0,66299.0,1.1356407]
[1718655240986,0.00710694,66300.0,66299.0,0.3259097]
[1718655240987,0.25890694,66300.0,66299.0,0.3259097]
[1718655241190,0.25890694,66300.0,66299.0,0.30840077]
[1718655241389,0.25890694,66300.0,66299.0,0.18459451]
[1718655241945,0.25890694,66300.0,66299.0,0.17059451]
[1718655241946,0.25790694,66300.0,66299.0,0.17059451]
[1718655242148,0.55850694,66300.0,66299.0,0.17059451]
[1718655242328,0.55850694,66300.0,66299.0,0.18459451]
[1718655242329,0.55950694,66300.0,66299.0,0.18459451]
[1718655243139,0.30613954,66300.0,66299.0,0.18459451]
[1718655243341,0.30613954,66300.0,66299.0,0.17059451]
[1718655243558,0.30613954,66300.0,66299.0,0.20273776]
[1718655243763,0.30613954,66300.0,66299.0,0.21673776]
[1718655243965,0.30513954,66300.0,66299.0,0.18873776]
[1718655244168,0.30513954,66300.0,66299.0,0.34856876]
[1718655244420,0.30613954,66300.0,66299.0,0.20973776]
[1718655245626,0.001,66300.0,66299.0,0.96389476]
[1718655246020,0.001,66300.0,66299.0,0.20973776]
[1718655246218,0.2518,66300.0,66299.0,0.17759451]
[1718655249294,0.2518,66300.0,66299.0,0.02486563]
[1718655249666,0.5605,66300.0,66299.0,0.021]
[1718655254707,0.5605,66300.0,66299.0,0.0247508]
[1718655254927,0.5605,66300.0,66299.0,0.021]
[1718655256202,0.5605,66300.0,66299.0,0.4772448]
[1718655256383,0.5605,66300.0,66299.0,0.1032463]
[1718655256809,0.5605,66300.0,66299.0,0.0247508]
[1718655258532,0.5605,66300.0,66299.0,0.021]
[1718655259133,0.5605,66300.0,66299.0,0.0247508]
[1718655260191,0.5605,66300.0,66299.0,0.021]
[1718655261790,0.001,66300.0,66299.0,0.171831]
[1718655261996,0.001,66300.0,66299.0,0.73000598]
[1718655262173,0.001,66300.0,66299.0,1.03542282]
[1718655262374,0.001,66300.0,66299.0,1.33708582]
[1718655262579,0.001,66300.0,66299.0,0.73375982]
[1718655263212,0.001,66300.0,66299.0,1.05542282]
[1718655263420,0.00854,66304.0,66300.0,0.301656]
[1718655263623,0.00854,66304.0,66303.0,0.150822]
[1718655263861,0.00854,66304.0,66303.0,0.30355088]
[1718655264290,0.00854,66304.0,66303.0,0.30730793]
[1718655265260,0.00854,66304.0,66303.0,0.60895293]
[1718655265463,0.00854,66304.0,66303.0,0.30730793]
[1718655266291,0.00854,66304.0,66303.0,0.32130793]
[1718655266496,0.00854,66304.0,66303.0,0.01775705]
[1718655267027,0.57874,66304.0,66303.0,0.014]
[1718655267378,0.57874,66304.0,66303.0,0.025]
[1718655272351,1.1512,66304.0,66303.0,0.025]
[1718655272592,0.82956,66304.0,66303.0,0.025]
[1718655273165,0.69874,66304.0,66303.0,0.025]
[1718655273413,0.84956,66304.0,66303.0,0.025]
[1718655273612,0.82956,66304.0,66303.0,0.025]
[1718655273734,0.82956,66304.0,66303.0,0.014]
[1718655274140,0.82956,66304.0,66303.0,0.004]
[1718655274529,0.82956,66304.0,66303.0,0.01]
[1718655275486,1.1312,66304.0,66303.0,0.01]
[1718655276476,0.67874,66304.0,66303.0,0.01]
[1718655277545,0.82956,66304.0,66303.0,0.01]
[1718655278288,1.1312,66304.0,66303.0,0.01]
[1718655278958,1.75448,66304.0,66303.0,0.01]
[1718655279837,1.97444632,66304.0,66303.0,0.01]
[1718655280054,1.98634391,66304.0,66303.0,0.01]
[1718655280212,2.40926195,66304.0,66303.0,0.01]
[1718655280415,2.32078707,66304.0,66303.0,0.01]
[1718655280685,2.05273188,66304.0,66303.0,0.01]
[1718655281038,1.98634391,66304.0,66303.0,0.01]
[1718655281455,2.76430453,66304.0,66303.0,0.01]
[1718655281656,0.854147,66300.0,66299.0,0.000935]
[1718655281878,3.0126958,66300.0,66299.0,0.000935]
[1718655282110,2.89320953,66300.0,66299.0,0.000935]
[1718655282447,2.60043219,66300.0,66299.0,0.000935]
[1718655282702,2.70213936,66300.0,66299.0,0.000935]
[1718655282868,2.71102103,66300.0,66299.0,0.000935]
[1718655283069,2.59155053,66300.0,66299.0,0.000935]
[1718655283273,2.60043221,66300.0,66299.0,0.000935]
[1718655283478,2.7021415,66300.0,66299.0,0.000935]
[1718655284298,2.7021415,66300.0,66299.0,0.001935]
[1718655284502,2.59755053,66300.0,66299.0,0.001935]
[1718655284726,2.70816128,66300.0,66299.0,0.001935]
[1718655284917,2.85265968,66300.0,66299.0,0.001935]
[1718655285349,2.74208958,66300.0,66299.0,0.001935]
[1718655285469,3.04374858,66300.0,66299.0,0.001935]
[1718655285879,4.00116158,66300.0,66299.0,0.001935]
[1718655286086,0.02,66288.0,66274.0,0.2488]
[1718655286490,0.150884,66276.0,66274.0,0.2488]
[1718655286672,0.301768,66276.0,66274.0,0.2488]
[1718655286813,0.150884,66276.0,66274.0,0.2488]
[1718655287018,0.150884,66276.0,66263.0,0.4678]
[1718655287224,0.301737,66283.0,66263.0,0.4678]
[1718655287225,0.45263,66280.0,66275.0,0.014935]
[1718655287423,0.00602818,66279.0,66275.0,0.014935]
[1718655287865,0.00602818,66279.0,66275.0,0.000935]
[1718655288162,0.15690618,66279.0,66275.0,0.000935]
[1718655288656,0.15088,66278.0,66275.0,0.000935]
[1718655288905,0.00602818,66277.0,66275.0,0.014935]
[1718655289605,0.001,66276.0,66275.0,0.020935]
[1718655290009,0.00602818,66276.0,66275.0,0.014935]
[1718655290212,0.00602818,66280.0,66275.0,0.000935]
[1718655290451,0.001,66277.0,66275.0,0.006935]
[1718655290627,0.150884,66276.0,66275.0,0.006935]
[1718655290831,0.150884,66276.0,66275.0,0.000935]
[1718655291038,0.452652,66276.0,66275.0,0.000935]
[1718655291366,0.001,66276.0,66275.0,0.006935]
[1718655292017,0.001,66276.0,66275.0,0.020935]
[1718655292261,0.001,66276.0,66275.0,0.006935]
[1718655292472,0.001,66276.0,66275.0,0.01061754]
[1718655292648,0.00802818,66276.0,66275.0,0.020935]
[1718655292869,0.00702818,66276.0,66275.0,0.014935]
[1718655293069,0.00802818,66276.0,66275.0,0.024935]
[1718655294157,0.002,66276.0,66275.0,0.024935]
[1718655295073,0.002,66276.0,66270.0,0.09818628]
[1718655295438,0.301778,66274.0,66271.0,0.00367965]
[1718655295645,0.150893,66272.0,66271.0,0.00367965]
[1718655295856,0.002,66276.0,66267.0,0.3146]
[1718655295857,0.001,66276.0,66267.0,0.3146]
[1718655296079,0.10702818,66276.0,66267.0,0.3146]
[1718655296300,0.10802818,66276.0,66270.0,0.01]
[1718655296521,0.10702818,66276.0,66270.0,0.01]
[1718655296737,0.10602818,66276.0,66267.0,0.3146]
[1718655296942,0.10702818,66276.0,66270.0,0.014]
[1718655297150,0.00802818,66276.0,66270.0,0.014]
[1718655297361,0.002,66276.0,66271.0,0.00368348]
[1718655298483,0.001,66276.0,66271.0,0.00368348]
[1718655298655,0.00802818,66276.0,66271.0,0.00368348]
[1718655299014,0.00702818,66276.0,66272.0,0.00368348]
[1718655299156,0.00602818,66276.0,66272.0,0.00368348]
[1718655299369,0.001,66276.0,66269.0,0.2537]
[1718655299687,0.002,66276.0,66269.0,0.2537]
[1718655300089,0.001,66276.0,66270.0,0.00368348]
[1718655300877,0.150879,66278.0,66270.0,0.00368348]
[1718655301121,0.321751,66280.0,66270.0,0.00368348]
[1718655301287,0.02,66275.0,66270.0,0.00368348]
[1718655301562,0.150884,66276.0,66267.0,0.3146]
[1718655301692,0.150887,66275.0,66271.0,0.00368327]
[1718655301897,0.150887,66275.0,66269.0,0.006]
[1718655302103,0.150887,66275.0,66267.0,0.3146]
[1718655302104,0.02,66275.0,66270.0,0.00368327]
[1718655302310,0.02,66275.0,66265.0,0.2637]
[1718655302311,0.150893,66272.0,66265.0,0.2637]
[1718655302518,0.7955,66273.0,66270.0,0.006]
[1718655302519,0.270896,66271.0,66270.0,0.006]
[1718655302810,0.150904,66267.0,66258.0,0.2581]
[1718655303042,0.12,66271.0,66258.0,0.2581]
[1718655303246,0.150907,66266.0,66259.0,0.00349912]
[1718655303476,0.1,66271.0,66259.0,0.00349912]
[1718655303702,0.1,66272.0,66260.0,0.03023]
[1718655304118,0.001,66271.0,66260.0,0.03023]
[1718655304287,0.001,66271.0,66262.0,0.03023]
[1718655304535,0.1,66272.0,66262.0,0.03023]
[1718655304755,0.250894,66272.0,66262.0,0.03023]
[1718655304971,0.001,66271.0,66264.0,0.03023]
[1718655305643,0.002,66271.0,66270.0,0.01]
[1718655306071,0.001,66271.0,66259.0,0.03023]
[1718655306508,0.002,66271.0,66265.0,0.03023]
[1718655306978,0.12,66272.0,66265.0,0.03023]
[1718655307183,0.12,66272.0,66270.0,0.014]
[1718655307184,0.1,66272.0,66270.0,0.014]
[1718655307398,0.101,66272.0,66270.0,0.014]
[1718655307616,0.101,66272.0,66266.0,0.03023]
[1718655307833,0.1,66272.0,66266.0,0.03023]
[1718655308320,0.1,66272.0,66268.0,0.150901]
[1718655308321,0.001,66271.0,66268.0,0.150901]
[1718655308542,0.001,66271.0,66270.0,0.45558432]
[1718655308757,0.001,66271.0,66270.0,1.50741588]
[1718655308966,0.001,66271.0,66270.0,1.93445969]
[1718655309181,0.002,66271.0,66270.0,1.93795881]
[1718655309393,0.001,66271.0,66270.0,1.93795881]
[1718655309617,0.001,66271.0,66270.0,1.63616381]
[1718655309839,0.5668,66293.0,66273.0,0.864178]
[1718655310057,0.1119317,66292.0,66277.0,0.15088]
[1718655310263,0.1119317,66292.0,66278.0,0.150879]
[1718655310486,0.1119317,66292.0,66278.0,0.00349912]
[1718655310904,0.5668,66293.0,66278.0,0.00349912]
[1718655311141,0.3019,66293.0,66283.0,0.3252]
[1718655311370,0.00085,66299.0,66294.0,0.150842]
[1718655311581,0.00085,66299.0,66295.0,0.2609]
[1718655312018,0.00085,66299.0,66296.0,0.00349912]
[1718655312889,0.00085,66299.0,66298.0,0.150834]
[1718655313177,0.00085,66299.0,66297.0,0.5546]
[1718655313416,0.00085,66299.0,66298.0,0.68768282]
[1718655313623,0.00085,66299.0,66298.0,2.95723201]
[1718655313828,0.00854,66304.0,66298.0,2.95723201]
[1718655313829,0.00854,66304.0,66303.0,1.181997]
[1718655314051,0.00854,66304.0,66303.0,2.6200808]
[1718655314259,0.00854,66304.0,66303.0,2.33373651]
[1718655314700,0.00854,66304.0,66303.0,2.43573651]
[1718655314953,0.00854,66304.0,66303.0,2.73738151]
[1718655315171,0.00854,66304.0,66303.0,2.43573651]
[1718655315632,0.00854,66304.0,66303.0,2.31054293]
[1718655315850,0.00854,66304.0,66303.0,2.36054293]
[1718655316066,0.00854,66304.0,66303.0,2.66218793]
[1718655316274,0.00854,66304.0,66303.0,2.78735723]
[1718655316713,0.00954,66304.0,66303.0,2.81535723]
[1718655316944,0.00954,66304.0,66303.0,2.69018793]
[1718655317156,0.00954,66304.0,66303.0,2.5137129]
[1718655317366,0.00954,66304.0,66303.0,2.38854293]
[1718655318655,0.00954,66304.0,66303.0,2.69018793]
[1718655319085,0.00854,66308.0,66307.0,1.227694]
[1718655319297,0.00854,66308.0,66307.0,2.82996244]
[1718655319550,0.00854,66308.0,66307.0,3.11327898]
[1718655319998,0.00854,66308.0,66307.0,3.11127898]
[1718655320429,0.00854,66308.0,66307.0,3.12727898]
[1718655320656,0.00954,66308.0,66307.0,3.14127898]
[1718655321803,0.00954,66308.0,66307.0,3.03927898]
[1718655322021,0.00954,66308.0,66307.0,3.14127898]
[1718655322798,0.00954,66308.0,66307.0,3.01927898]
[1718655323003,0.00954,66308.0,66307.0,2.55567898]
[1718655323356,0.00954,66308.0,66307.0,3.39567898]
[1718655323525,0.00954,66308.0,66307.0,3.49767898]
[1718655324008,0.00954,66308.0,66307.0,3.65667898]
[1718655324232,0.00954,66308.0,66307.0,4.00830598]
[1718655324674,0.00954,66308.0,66307.0,3.95830598]
[1718655326177,0.00085,66315.0,66314.0,2.160682]
[1718655326392,0.00085,66315.0,66314.0,3.02821588]
[1718655326627,0.00085,66315.0,66314.0,3.07667963]
[1718655327155,0.00856,66330.0,66329.0,1.639244]
[1718655327376,0.00856,66330.0,66329.0,2.34549988]
[1718655327593,0.00856,66330.0,66329.0,3.37487623]
[1718655328187,0.00856,66330.0,66329.0,3.47687623]
[1718655328573,0.00856,66330.0,66329.0,3.57687623]
[1718655328765,0.00856,66330.0,66329.0,3.45487623]
[1718655328998,0.00856,66330.0,66329.0,3.55687623]
[1718655329203,0.00856,66330.0,66329.0,3.57087623]
[1718655329608,0.00856,66330.0,66329.0,3.55687623]
[1718655330019,0.00856,66330.0,66329.0,3.60110623]
[1718655330216,0.00856,66330.0,66329.0,3.90263323]
[1718655330392,0.00856,66330.0,66329.0,3.51310623]
[1718655330581,0.00856,66330.0,66329.0,3.61510623]
[1718655330781,0.00856,66330.0,66329.0,3.60110623]
[1718655330986,0.00856,66330.0,66329.0,3.58710623]
[1718655331177,0.00856,66330.0,66329.0,3.68710623]
[1718655331382,0.00856,66330.0,66329.0,4.00263323]
[1718655331773,0.00855,66332.0,66331.0,2.545243]
[1718655331973,0.00855,66332.0,66331.0,3.45948988]
[1718655332180,0.00855,66332.0,66331.0,4.14524579]
[1718655332358,0.00855,66332.0,66331.0,4.15255633]
[1718655332785,0.00855,66332.0,66331.0,4.15203402]
[1718655332901,0.00855,66332.0,66331.0,4.30474658]
[1718655333098,0.00855,66332.0,66331.0,4.18103098]
[1718655333301,0.00855,66332.0,66331.0,4.30474896]
[1718655333725,0.00855,66332.0,66331.0,4.19503098]
[1718655333927,0.00855,66332.0,66331.0,4.31995097]
[1718655334132,0.00855,66332.0,66331.0,4.14683297]
[1718655334334,0.00855,66332.0,66331.0,2.50499498]
[1718655334542,0.00855,66332.0,66331.0,1.23836442]
[1718655335007,0.00855,66332.0,66331.0,1.55988242]
[1718655335184,0.00855,66332.0,66331.0,1.23836442]
[1718655335703,0.00855,66332.0,66331.0,0.18803942]
[1718655335940,0.00855,66332.0,66331.0,0.94183442]
[1718655336129,0.00855,66332.0,66331.0,1.22935242]
[1718655336383,0.00855,66332.0,66331.0,1.38828766]
[1718655336830,0.00855,66332.0,66331.0,1.05276966]
[1718655337035,0.00855,66332.0,66331.0,1.07276966]
[1718655337240,0.00855,66332.0,66331.0,1.38828766]
[1718655337444,0.00855,66332.0,66331.0,1.36028766]
[1718655337866,0.00855,66332.0,66331.0,1.38828766]
[1718655338282,0.00855,66332.0,66331.0,2.91338766]
[1718655338461,0.00855,66332.0,66331.0,3.04238766]
[1718655338785,0.00855,66332.0,66331.0,2.99038766]
[1718655338895,0.00855,66332.0,66331.0,3.20678766]
[1718655339099,0.00855,66332.0,66331.0,3.30878766]
[1718655339326,0.00855,66332.0,66331.0,3.28028443]
[1718655339534,0.00855,66332.0,66331.0,2.52028443]
[1718655339755,0.00855,66332.0,66331.0,3.29028443]
[1718655339948,0.00855,66332.0,66331.0,2.52028443]
[1718655340159,0.00855,66332.0,66331.0,3.80380243]
[1718655340365,0.00855,66332.0,66331.0,3.50228443]
[1718655340577,0.00855,66332.0,66331.0,2.92876643]
[1718655340782,0.00855,66332.0,66331.0,3.43028443]
[1718655341414,0.00855,66332.0,66331.0,3.43045334]
[1718655342011,0.00855,66332.0,66331.0,3.53245334]
[1718655342211,0.00855,66332.0,66331.0,3.83397134]
[1718655342676,0.00855,66332.0,66331.0,3.43045334]
[1718655342807,0.00855,66332.0,66331.0,3.26045334]
[1718655343012,0.00855,66332.0,66331.0,3.31045334]
[1718655343613,0.00855,66332.0,66331.0,3.71397134]
[1718655344166,0.00855,66332.0,66331.0,4.02677623]
[1718655345149,0.00855,66332.0,66331.0,3.72525823]
[1718655345527,0.00855,66332.0,66331.0,4.02677623]
[1718655345727,0.00855,66332.0,66331.0,3.72525823]
[1718655345941,0.00855,66332.0,66331.0,3.64441574]
[1718655346147,0.00855,66332.0,66331.0,3.67441574]
[1718655347981,0.00855,66332.0,66331.0,3.77641574]
[1718655348211,0.00855,66332.0,66331.0,4.07793374]
[1718655348640,0.00855,66332.0,66331.0,4.23292321]
[1718655348822,0.00855,66332.0,66331.0,4.37945174]
[1718655349024,0.00855,66332.0,66331.0,4.25578606]
[1718655349242,0.00855,66332.0,66331.0,4.01796496]
[1718655349518,0.00855,66332.0,66331.0,4.31948296]
[1718655349720,0.00855,66332.0,66331.0,4.41948296]
[1718655350424,0.00855,66332.0,66331.0,4.11796496]
[1718655350865,0.00855,66332.0,66331.0,4.41948296]
[1718655351523,0.00855,66332.0,66331.0,4.11796496]
[1718655352314,0.00855,66332.0,66331.0,4.43667232]
[1718655352516,0.00855,66332.0,66331.0,4.45967232]
[1718655353085,0.00855,66332.0,66331.0,4.15815432]
[1718655354075,0.00855,66332.0,66331.0,4.37455432]
[1718655354289,0.00855,66332.0,66331.0,4.87511627]
[1718655354497,0.00855,66332.0,66331.0,5.17663427]
[1718655354896,0.00855,66332.0,66331.0,5.05152102]
[1718655355100,0.00855,66332.0,66331.0,5.17356682]
[1718655355768,0.28224,66357.0,66356.0,0.150702]
[1718655356094,0.28224,66357.0,66356.0,0.35555978]
[1718655356268,0.28224,66357.0,66356.0,0.47904962]
[1718655356478,0.28224,66357.0,66356.0,0.35555978]
[1718655356815,0.35817072,66357.0,66356.0,0.15964508]
[1718655357583,0.35817072,66357.0,66356.0,0.31334708]
[1718655357782,0.35817072,66357.0,66356.0,0.31034708]
[1718655357985,0.35817072,66357.0,66356.0,0.15964508]
[1718655358180,0.28224,66357.0,66356.0,0.15964508]
[1718655358408,0.28224,66357.0,66356.0,0.25996379]
[1718655358819,0.60247072,66357.0,66356.0,0.0159162]
[1718655359015,0.60247072,66357.0,66356.0,0.009]
[1718655360306,0.52654,66357.0,66356.0,0.009]
[1718655360507,0.69724,66357.0,66356.0,0.009]
[1718655360737,0.52654,66357.0,66356.0,0.009]
[1718655361971,0.52654,66357.0,66356.0,0.01592362]
[1718655362124,0.52654,66357.0,66356.0,0.009]
[1718655364402,0.52654,66357.0,66356.0,0.01592316]
[1718655365528,0.52654,66357.0,66356.0,0.009]
[1718655367519,0.52654,66357.0,66356.0,0.01592316]
[1718655367719,0.52654,66357.0,66356.0,0.009]
[1718655371620,0.54654,66357.0,66356.0,0.009]
[1718655373110,0.52654,66357.0,66356.0,0.009]
[1718655373518,1.70144,66357.0,66356.0,0.009]
[1718655374108,1.76380548,66357.0,66356.0,0.009]
[1718655374313,1.93951804,66357.0,66356.0,0.009]
[1718655374558,2.98697004,66357.0,66356.0,0.009]
[1718655374778,2.79968248,66357.0,66356.0,0.009]
[1718655374981,2.95241136,66357.0,66356.0,0.009]
[1718655375424,2.95241136,66357.0,66356.0,0.006]
[1718655375637,0.5644,66346.0,66331.0,0.92103524]
[1718655375768,0.1,66345.0,66341.0,0.45558432]
[1718655375969,0.1,66345.0,66331.0,0.12493524]
[1718655376176,0.12,66345.0,66332.0,0.22182155]
[1718655376785,0.16444124,66345.0,66332.0,0.22182155]
[1718655377008,0.16444124,66345.0,66332.0,0.15272888]
[1718655377210,0.14444124,66345.0,66332.0,0.15272888]
[1718655377413,0.1,66345.0,66332.0,0.15272888]
[1718655378857,0.02,66340.0,66332.0,0.16672888]
[1718655379075,0.150748,66336.0,66332.0,0.16672888]
[1718655379280,0.5707,66339.0,66332.0,0.18072888]
[1718655379501,0.5707,66339.0,66333.0,0.150754]
[1718655379722,0.1,66343.0,66334.0,0.30709359]
[1718655379972,0.08888249,66349.0,66342.0,0.150733]
[1718655379973,0.61224124,66349.0,66342.0,0.150733]
[1718655380111,0.5678,66349.0,66343.0,0.15272888]
[1718655380310,0.5678,66353.0,66343.0,0.15272888]
[1718655380531,0.5678,66353.0,66344.0,0.06905999]
[1718655381317,0.5678,66353.0,66345.0,0.15272888]
[1718655383558,0.5678,66353.0,66345.0,0.15572888]
[1718655383763,0.02,66352.0,66345.0,0.15572888]
[1718655383958,0.718509,66353.0,66345.0,0.15572888]
[1718655384382,0.09593072,66352.0,66345.0,0.003]
[1718655384589,0.5678,66353.0,66345.0,0.004]
[1718655385200,0.5678,66353.0,66345.0,0.003]
[1718655385621,0.15072,66348.0,66345.0,0.005]
[1718655385836,0.15072,66348.0,66345.0,0.002]
[1718655386048,0.5878,66353.0,66345.0,0.004]
[1718655386049,0.5678,66353.0,66345.0,0.004]
[1718655386450,0.5678,66353.0,66345.0,0.005]
[1718655386905,0.5678,66353.0,66345.0,0.001]
[1718655387343,0.5678,66353.0,66345.0,0.004]
[1718655387554,0.00085,66357.0,66346.0,0.70712888]
[1718655387775,0.00085,66357.0,66355.0,0.150702]
[1718655388176,0.00085,66357.0,66356.0,0.00660543]
[1718655388588,0.00085,66357.0,66351.0,0.02]
[1718655388804,0.00085,66357.0,66356.0,0.00660543]
[1718655389005,0.00085,66357.0,66356.0,0.04597503]
[1718655389173,0.00085,66357.0,66356.0,0.00660543]
[1718655389438,0.00085,66357.0,66356.0,0.15730743]
[1718655389659,0.00085,66357.0,66354.0,0.150705]
[1718655389865,0.00085,66357.0,66356.0,0.46571143]
[1718655390084,0.00085,66357.0,66356.0,0.47471143]
[1718655390285,0.00085,66357.0,66356.0,1.26762341]
[1718655390490,0.00085,66357.0,66356.0,1.26522884]
[1718655390896,0.00085,66357.0,66356.0,0.97482484]
[1718655391103,0.00085,66357.0,66356.0,1.27622884]
[1718655391234,0.00085,66357.0,66356.0,0.96782484]
[1718655391433,0.00085,66357.0,66356.0,0.97582484]
[1718655392253,0.00085,66357.0,66356.0,2.64132884]
[1718655392428,0.00085,66357.0,66356.0,2.4464171]
[1718655392578,0.00085,66357.0,66356.0,2.4584171]
[1718655392784,0.00085,66357.0,66356.0,2.7598211]
[1718655392986,0.00085,66357.0,66356.0,2.7688211]
[1718655393196,0.00085,66357.0,66356.0,2.76881636]
[1718655393397,0.00085,66357.0,66356.0,3.60881636]
[1718655393592,0.00085,66357.0,66356.0,3.13681636]
[1718655393794,0.00085,66357.0,66356.0,3.54081636]
[1718655394025,0.00085,66357.0,66356.0,3.95550613]
[1718655394233,0.00085,66357.0,66356.0,2.77081636]
[1718655394439,0.00085,66357.0,66356.0,2.76181636]
[1718655394775,0.00085,66357.0,66356.0,2.77581636]
[1718655395751,0.00085,66357.0,66356.0,2.77581444]
[1718655397077,0.00085,66357.0,66356.0,3.84921844]
[1718655397293,0.00085,66357.0,66356.0,4.19821844]
[1718655397501,0.00085,66357.0,66356.0,4.58090107]
[1718655397912,0.00085,66357.0,66356.0,4.59831472]
[1718655398125,0.00085,66357.0,66356.0,4.58090107]
[1718655398827,0.00085,66357.0,66356.0,4.56690107]
[1718655399065,0.00085,66357.0,66356.0,4.55290107]
[1718655399292,0.00085,66357.0,66356.0,4.56690107]
[1718655399478,0.00085,66357.0,66356.0,4.58090107]
[1718655399936,0.00085,66357.0,66356.0,4.68090107]
[1718655401829,0.00085,66357.0,66356.0,4.98230507]
[1718655402263,0.00085,66357.0,66356.0,4.68090107]
[1718655402380,0.00085,66357.0,66356.0,5.28370907]
[1718655402588,0.34523538,66385.0,66384.0,0.150638]
[1718655402792,0.34523538,66385.0,66370.0,0.52]
[1718655402793,0.34523538,66385.0,66372.0,0.2586]
[1718655403087,0.34523538,66385.0,66384.0,0.00649934]
[1718655403295,0.34523538,66385.0,66381.0,0.150643]
[1718655403499,0.34523538,66385.0,66381.0,0.15272888]
[1718655403873,0.34523538,66385.0,66382.0,0.00649934]
[1718655405319,0.34523538,66385.0,66382.0,0.15714134]
[1718655405530,0.34523538,66385.0,66382.0,0.00649934]
[1718655405733,0.34523538,66385.0,66384.0,0.005]
[1718655405935,0.34523538,66385.0,66383.0,0.00646367]
[1718655406147,0.34523538,66385.0,66382.0,0.153642]
[1718655406322,0.34523538,66385.0,66384.0,0.15710167]
[1718655406685,0.07593072,66396.0,66389.0,0.150627]
[1718655406686,0.2451,66390.0,66389.0,0.150627]
[1718655406883,0.2451,66390.0,66389.0,0.451881]
[1718655407090,0.2451,66390.0,66387.0,0.150631]
[1718655407215,0.2451,66390.0,66389.0,0.15709021]
[1718655407644,0.2451,66390.0,66389.0,0.45834421]
[1718655407922,0.2451,66390.0,66389.0,0.54114519]
[1718655408678,0.2481,66395.0,66390.0,0.301249]
[1718655408883,0.2481,66395.0,66391.0,0.301243]
[1718655409474,0.2481,66395.0,66389.0,0.38405198]
[1718655409475,0.2481,66395.0,66392.0,0.00646321]
[1718655409675,0.2481,66395.0,66388.0,0.150628]
[1718655410061,0.2481,66395.0,66393.0,0.00646321]
[1718655410234,0.2481,66395.0,66388.0,0.150628]
[1718655410435,0.2481,66395.0,66394.0,0.00646321]
[1718655410592,0.2481,66395.0,66384.0,0.301275]
[1718655410593,0.2481,66395.0,66379.0,0.5962]
[1718655410797,0.2481,66395.0,66385.0,0.150634]
[1718655410998,0.2481,66395.0,66387.0,0.150631]
[1718655411199,0.2481,66395.0,66387.0,0.15272888]
[1718655411415,0.2481,66395.0,66388.0,0.00644942]
[1718655411626,0.00854,66397.0,66388.0,0.00644942]
[1718655411627,0.00854,66397.0,66396.0,1.023255]
[1718655411840,0.0135896,66414.0,66396.0,1.023255]
[1718655411841,0.0135896,66414.0,66413.0,0.772862]
[1718655412034,0.0135896,66414.0,66413.0,1.379462]
[1718655412234,0.0135896,66414.0,66413.0,2.0359114]
[1718655412480,0.0135896,66414.0,66413.0,2.79091396]
[1718655412682,0.0135896,66414.0,66413.0,3.11661396]
[1718655412916,0.0135896,66414.0,66413.0,2.93819784]
[1718655413327,0.0135896,66414.0,66413.0,3.22934284]
[1718655413638,0.0135896,66414.0,66413.0,3.27934284]
[1718655414061,0.0135896,66414.0,66413.0,3.29334284]
[1718655414289,0.0135896,66414.0,66413.0,2.54334284]
[1718655414589,0.0135896,66414.0,66413.0,3.25334284]
[1718655414993,0.0135896,66414.0,66413.0,3.37830544]
[1718655415203,0.0135896,66414.0,66413.0,3.25334284]
[1718655415677,0.0135896,66414.0,66413.0,2.54334284]
[1718655415884,0.0135896,66414.0,66413.0,2.02579784]
[1718655416133,0.0135896,66414.0,66413.0,2.54334284]
[1718655416352,0.0135896,66414.0,66413.0,2.24219784]
[1718655416489,0.0135896,66414.0,66413.0,3.01219784]
[1718655416691,0.0135896,66414.0,66413.0,2.25619784]
[1718655417256,0.0135896,66414.0,66413.0,2.55734284]
[1718655417392,0.0135896,66414.0,66413.0,3.05619784]
[1718655417811,0.0135896,66414.0,66413.0,3.35734284]
[1718655418329,0.0135896,66414.0,66413.0,2.25619784]
[1718655419499,0.0135896,66414.0,66413.0,2.22819784]
[1718655419924,0.0135896,66414.0,66413.0,2.24219784]
[1718655420524,0.0135896,66414.0,66413.0,2.25619784]
[1718655420956,0.0135896,66414.0,66413.0,3.29734284]
[1718655421088,0.0135896,66414.0,66413.0,3.39934284]
[1718655421308,0.0135896,66414.0,66413.0,3.55834284]
[1718655421514,0.0135896,66414.0,66413.0,3.90929942]
[1718655421922,0.0135896,66414.0,66413.0,3.90930271]
[1718655423267,0.0135896,66414.0,66413.0,3.92330271]
[1718655423689,0.0135896,66414.0,66413.0,3.94413956]
[1718655424935,0.0135896,66414.0,66413.0,3.97436956]
[1718655425603,0.0135896,66414.0,66413.0,3.87236956]
[1718655425884,0.0135896,66414.0,66413.0,0.18717828]
[1718655426206,0.0135896,66414.0,66413.0,1.26118528]
[1718655426531,0.0135896,66414.0,66413.0,1.66118528]
[1718655426735,0.0135896,66414.0,66413.0,1.24718528]
[1718655427050,0.0135896,66414.0,66413.0,2.17389784]
[1718655427210,0.0135896,66414.0,66413.0,1.41389784]
[1718655427415,0.0135896,66414.0,66413.0,1.38589784]
[1718655427618,0.0135896,66414.0,66413.0,1.39989784]
[1718655427900,0.0135896,66414.0,66413.0,1.24118528]
[1718655428101,0.0135896,66414.0,66413.0,0.96004028]
[1718655428295,0.0135896,66414.0,66413.0,0.94604028]
[1718655428610,0.0135896,66414.0,66413.0,2.98648528]